[Event "*** Titled Tuesday Blitz"]
[Site "Chess.com"]
[Date "2019.09.03"]
[Round "2"]
[White "Roman_Ovetchkin"]
[Black "David_Paravyan"]
[Result "1-0"]
[WhiteElo "2688"]
[BlackElo "2905"]
[TimeControl "180+2"]
[EndTime "15:24:52 PDT"]
[Termination "Roman_Ovetchkin won on time"]

1. d4 {[%clk 0:03:01.9]} 1... f5 {[%clk 0:02:56.1]} 2. c4 {[%clk 0:02:53.7]}
2... Nf6 {[%clk 0:02:56.7]} 3. Nc3 {[%clk 0:02:53.2]} 3... e6 {[%clk 0:02:56.7]}
4. g3 {[%clk 0:02:51.9]} 4... Bb4 {[%clk 0:02:56]} 5. Bg2 {[%clk 0:02:51]} 5...
O-O {[%clk 0:02:55.5]} 6. Nf3 {[%clk 0:02:51.7]} 6... Bxc3+ {[%clk 0:02:49.6]}
7. bxc3 {[%clk 0:02:52.1]} 7... Nc6 {[%clk 0:02:51.5]} 8. O-O {[%clk 0:02:52]}
8... b6 {[%clk 0:02:51]} 9. Ne5 {[%clk 0:02:11.7]} 9... Bb7 {[%clk 0:02:50.2]}
10. Bg5 {[%clk 0:02:13.2]} 10... Na5 {[%clk 0:02:46.9]} 11. d5 {[%clk
0:01:51.2]} 11... d6 {[%clk 0:02:41.3]} 12. Nd3 {[%clk 0:01:51.9]} 12... e5
{[%clk 0:02:34.3]} 13. Nb2 {[%clk 0:01:41.1]} 13... Ba6 {[%clk 0:02:25.3]} 14.
Qd3 {[%clk 0:01:41.7]} 14... h6 {[%clk 0:02:20.1]} 15. Bd2 {[%clk 0:01:26.8]}
15... Nd7 {[%clk 0:02:12.5]} 16. f4 {[%clk 0:01:16.1]} 16... Nc5 {[%clk
0:02:06.5]} 17. Qc2 {[%clk 0:01:12.6]} 17... e4 {[%clk 0:02:06.4]} 18. Be3
{[%clk 0:01:08.5]} 18... Nxc4 {[%clk 0:02:03.9]} 19. Nxc4 {[%clk 0:01:08.5]}
19... Bxc4 {[%clk 0:02:05.7]} 20. Rad1 {[%clk 0:01:09.7]} 20... Qd7 {[%clk
0:02:03.7]} 21. Rd4 {[%clk 0:01:10.5]} 21... Qb5 {[%clk 0:01:51.9]} 22. Rb1
{[%clk 0:00:59.5]} 22... Qa6 {[%clk 0:01:49.6]} 23. Rb2 {[%clk 0:01:00.5]} 23...
Bxe2 {[%clk 0:01:48.1]} 24. Qxe2 {[%clk 0:01:00.4]} 24... Qa3 {[%clk 0:01:32.4]}
25. Qc2 {[%clk 0:00:59.8]} 25... a6 {[%clk 0:01:19.6]} 26. Bf1 {[%clk
0:00:47.3]} 26... Rfe8 {[%clk 0:01:14]} 27. Rdb4 {[%clk 0:00:45]} 27... Qa5
{[%clk 0:00:56.9]} 28. Rd4 {[%clk 0:00:34.1]} 28... Re7 {[%clk 0:00:54.4]} 29.
Rb1 {[%clk 0:00:28.8]} 29... Rae8 {[%clk 0:00:49.5]} 30. Re1 {[%clk 0:00:29.5]}
30... b5 {[%clk 0:00:37.5]} 31. h3 {[%clk 0:00:30]} 31... Na4 {[%clk 0:00:29.4]}
32. Rc1 {[%clk 0:00:30]} 32... Nc5 {[%clk 0:00:29.2]} 33. Qd2 {[%clk 0:00:29.8]}
33... Qa3 {[%clk 0:00:28.1]} 34. Kh2 {[%clk 0:00:27.9]} 34... Kh7 {[%clk
0:00:20.6]} 35. g4 {[%clk 0:00:28.6]} 35... g6 {[%clk 0:00:17.9]} 36. Be2 {[%clk
0:00:29.2]} 36... Nd3 {[%clk 0:00:07.9]} 37. Bxd3 {[%clk 0:00:26.9]} 37... exd3
{[%clk 0:00:09.7]} 38. Re1 {[%clk 0:00:28.4]} 38... Re4 {[%clk 0:00:05]} 39.
Rxd3 {[%clk 0:00:28.9]} 39... fxg4 {[%clk 0:00:03.7]} 40. hxg4 {[%clk
0:00:29.7]} 40... Qa5 {[%clk 0:00:04.4]} 41. Rd4 {[%clk 0:00:28.5]} 41... R4e7
{[%clk 0:00:03.7]} 42. Bf2 {[%clk 0:00:28.5]} 42... Rxe1 {[%clk 0:00:03.7]} 43.
Bxe1 {[%clk 0:00:29.6]} 43... Qb6 {[%clk 0:00:02.8]} 44. Bf2 {[%clk 0:00:30.5]}
44... Qb8 {[%clk 0:00:04]} 45. Qd3 {[%clk 0:00:30.8]} 45... Qd8 {[%clk
0:00:04.3]} 46. Re4 {[%clk 0:00:30.8]} 46... Rf8 {[%clk 0:00:05.8]} 47. Re6
{[%clk 0:00:29.3]} 47... Rg8 {[%clk 0:00:03.6]} 48. Qe4 {[%clk 0:00:29.4]} 48...
Rg7 {[%clk 0:00:04]} 49. Kh3 {[%clk 0:00:28.1]} 49... Qg8 {[%clk 0:00:02.4]} 50.
Bd4 {[%clk 0:00:27.6]} 1-0

[Event "*** Titled Tuesday Blitz"]
[Site "Chess.com"]
[Date "2019.09.03"]
[Round "2"]
[White "Kazmin_Dmitrij"]
[Black "TheFireChess"]
[Result "0-1"]
[WhiteElo "2308"]
[BlackElo "2518"]
[TimeControl "180+2"]
[EndTime "15:24:59 PDT"]
[Termination "TheFireChess won by resignation"]

1. b4 {[%clk 0:03:01.9]} 1... e6 {[%clk 0:02:59.9]} 2. b5 {[%clk 0:03:00.4]}
2... f5 {[%clk 0:03:00.7]} 3. Bb2 {[%clk 0:03:00.9]} 3... Nf6 {[%clk 0:03:02.1]}
4. c4 {[%clk 0:03:00.9]} 4... a6 {[%clk 0:03:00.3]} 5. a4 {[%clk 0:03:01]} 5...
axb5 {[%clk 0:03:01]} 6. axb5 {[%clk 0:03:01.8]} 6... Rxa1 {[%clk 0:03:02.9]} 7.
Bxa1 {[%clk 0:03:02.8]} 7... Be7 {[%clk 0:03:04.1]} 8. e3 {[%clk 0:03:02.2]}
8... O-O {[%clk 0:03:05.4]} 9. f4 {[%clk 0:03:02.3]} 9... d5 {[%clk 0:03:06]}
10. Nf3 {[%clk 0:03:01.4]} 10... c6 {[%clk 0:03:06]} 11. Qb3 {[%clk 0:02:59.4]}
11... Nbd7 {[%clk 0:03:04.2]} 12. Nc3 {[%clk 0:02:52.9]} 12... Nc5 {[%clk
0:02:30.7]} 13. Qc2 {[%clk 0:02:50.3]} 13... cxb5 {[%clk 0:02:00.7]} 14. Nxb5
{[%clk 0:02:42.9]} 14... Bd7 {[%clk 0:01:44]} 15. Be2 {[%clk 0:02:29.9]} 15...
Bxb5 {[%clk 0:01:28.3]} 16. cxb5 {[%clk 0:02:29.1]} 16... Qb6 {[%clk 0:01:24.3]}
17. O-O {[%clk 0:02:25.8]} 17... Ra8 {[%clk 0:01:24.7]} 18. Bd4 {[%clk 0:02:22]}
18... Qd6 {[%clk 0:01:12.9]} 19. Be5 {[%clk 0:02:09.7]} 19... Qd8 {[%clk
0:01:08.4]} 20. Nd4 {[%clk 0:01:59.9]} 20... Bf8 {[%clk 0:01:03.9]} 21. Rc1
{[%clk 0:01:42.8]} 21... Qd7 {[%clk 0:00:47]} 22. b6 {[%clk 0:01:34.2]} 22...
Qd8 {[%clk 0:00:40.8]} 23. Bc7 {[%clk 0:01:33.3]} 23... Qe8 {[%clk 0:00:41.2]}
24. Bb5 {[%clk 0:01:32]} 24... Qh5 {[%clk 0:00:40.7]} 25. h3 {[%clk 0:01:18.1]}
25... Qg6 {[%clk 0:00:39.9]} 26. d3 {[%clk 0:01:07.3]} 26... Qg3 {[%clk
0:00:37.8]} 27. Qf2 {[%clk 0:01:05.4]} 27... Qxf2+ {[%clk 0:00:38.2]} 28. Kxf2
{[%clk 0:01:06.5]} 28... Ra5 {[%clk 0:00:39]} 29. Rc2 {[%clk 0:00:47.6]} 29...
Kf7 {[%clk 0:00:39.8]} 30. Ke2 {[%clk 0:00:47.4]} 30... Ra3 {[%clk 0:00:33.2]}
31. Nf3 {[%clk 0:00:37.9]} 31... Nfd7 {[%clk 0:00:27.8]} 32. Ne5+ {[%clk
0:00:35.6]} 32... Nxe5 {[%clk 0:00:28.1]} 33. Bxe5 {[%clk 0:00:36.1]} 33... Rb3
{[%clk 0:00:29.6]} 34. Rb2 {[%clk 0:00:26.2]} 34... Rxb2+ {[%clk 0:00:27.2]} 35.
Bxb2 {[%clk 0:00:27.2]} 35... Bd6 {[%clk 0:00:22.9]} 36. Ba3 {[%clk 0:00:21.9]}
36... Ke7 {[%clk 0:00:22.8]} 37. g4 {[%clk 0:00:19.7]} 37... g6 {[%clk 0:00:23]}
38. g5 {[%clk 0:00:20]} 38... Nd7 {[%clk 0:00:23.2]} 39. Bxd7 {[%clk 0:00:17.3]}
39... Kxd7 {[%clk 0:00:22.8]} 40. Bb2 {[%clk 0:00:14.9]} 40... Bc5 {[%clk
0:00:23.4]} 41. Kf3 {[%clk 0:00:10.8]} 41... Bxb6 {[%clk 0:00:24]} 42. e4 {[%clk
0:00:12.2]} 42... dxe4+ {[%clk 0:00:23.8]} 43. dxe4 {[%clk 0:00:13.5]} 43... Kc6
{[%clk 0:00:23.8]} 44. exf5 {[%clk 0:00:14.1]} 44... exf5 {[%clk 0:00:25.7]} 45.
Ke2 {[%clk 0:00:15.2]} 45... Kd5 {[%clk 0:00:27.1]} 46. Kd3 {[%clk 0:00:16.5]}
46... Bc5 {[%clk 0:00:28.1]} 47. Be5 {[%clk 0:00:16.7]} 47... b5 {[%clk
0:00:28.9]} 48. Bc3 {[%clk 0:00:16.9]} 48... Bd6 {[%clk 0:00:29.7]} 49. Bd2
{[%clk 0:00:17.5]} 49... b4 {[%clk 0:00:30.1]} 50. h4 {[%clk 0:00:18.6]} 50...
b3 {[%clk 0:00:31.2]} 51. Bc1 {[%clk 0:00:17.8]} 51... b2 {[%clk 0:00:30.9]} 52.
Bxb2 {[%clk 0:00:18.6]} 52... Bxf4 {[%clk 0:00:32.4]} 53. Bf6 {[%clk 0:00:17.5]}
53... Bg3 {[%clk 0:00:33.1]} 54. h5 {[%clk 0:00:18.5]} 54... gxh5 {[%clk
0:00:34]} 55. Ke2 {[%clk 0:00:19.8]} 55... Be5 {[%clk 0:00:34.2]} 56. Bd8 {[%clk
0:00:19.5]} 56... Ke4 {[%clk 0:00:35.3]} 57. Kf2 {[%clk 0:00:20.4]} 57... f4
{[%clk 0:00:36]} 58. Kg2 {[%clk 0:00:21.1]} 58... f3+ {[%clk 0:00:37]} 59. Kf2
{[%clk 0:00:21.6]} 59... Bd4+ {[%clk 0:00:36.3]} 60. Kf1 {[%clk 0:00:22.6]}
60... Kf5 {[%clk 0:00:36.9]} 61. Be7 {[%clk 0:00:22.1]} 61... h4 {[%clk
0:00:37.5]} 62. g6 {[%clk 0:00:22.2]} 62... hxg6 {[%clk 0:00:38.7]} 63. Bxh4
{[%clk 0:00:23.2]} 63... g5 {[%clk 0:00:40]} 64. Bg3 {[%clk 0:00:24]} 64... Kg4
{[%clk 0:00:40]} 65. Bd6 {[%clk 0:00:23.7]} 65... Kh3 {[%clk 0:00:40.5]} 66. Bc7
{[%clk 0:00:22.5]} 66... g4 {[%clk 0:00:40.8]} 67. Bd6 {[%clk 0:00:17.3]} 67...
g3 {[%clk 0:00:41.9]} 68. Bxg3 {[%clk 0:00:17.8]} 68... Kxg3 {[%clk 0:00:43.8]}
0-1

[Event "*** Titled Tuesday Blitz"]
[Site "Chess.com"]
[Date "2019.09.03"]
[Round "2"]
[White "bugsbunny444"]
[Black "kuli4ik"]
[Result "1/2-1/2"]
[WhiteElo "2557"]
[BlackElo "2789"]
[TimeControl "180+2"]
[EndTime "15:25:01 PDT"]
[Termination "Game drawn by repetition"]

1. Nf3 {[%clk 0:03:01.9]} 1... g6 {[%clk 0:02:56.6]} 2. e4 {[%clk 0:03:02.4]}
2... Bg7 {[%clk 0:02:52.4]} 3. d4 {[%clk 0:03:03.4]} 3... d6 {[%clk 0:02:51]} 4.
Nc3 {[%clk 0:03:04.7]} 4... a6 {[%clk 0:02:50.8]} 5. a4 {[%clk 0:03:05.2]} 5...
Nf6 {[%clk 0:02:51.6]} 6. h3 {[%clk 0:03:06.4]} 6... O-O {[%clk 0:02:52.6]} 7.
Be3 {[%clk 0:03:07.8]} 7... Nc6 {[%clk 0:02:53.3]} 8. Be2 {[%clk 0:03:08.9]}
8... e5 {[%clk 0:02:50.2]} 9. d5 {[%clk 0:03:09.9]} 9... Ne7 {[%clk 0:02:50.6]}
10. Nd2 {[%clk 0:03:11.5]} 10... c6 {[%clk 0:02:51]} 11. Nc4 {[%clk 0:03:12.1]}
11... cxd5 {[%clk 0:02:51.7]} 12. Bb6 {[%clk 0:03:13.7]} 12... Qd7 {[%clk
0:02:37.2]} 13. exd5 {[%clk 0:03:14.6]} 13... Nf5 {[%clk 0:02:36.4]} 14. O-O
{[%clk 0:03:14]} 14... Qe7 {[%clk 0:02:34.7]} 15. Re1 {[%clk 0:03:13]} 15... Nd7
{[%clk 0:02:31.9]} 16. Bd3 {[%clk 0:02:53]} 16... Nxb6 {[%clk 0:02:17]} 17. Nxb6
{[%clk 0:02:53.2]} 17... Rb8 {[%clk 0:02:17.9]} 18. Nxc8 {[%clk 0:02:43.9]}
18... Rbxc8 {[%clk 0:02:18.4]} 19. Bxf5 {[%clk 0:02:39.8]} 19... gxf5 {[%clk
0:02:20.3]} 20. Qh5 {[%clk 0:02:37]} 20... Qf6 {[%clk 0:02:19.8]} 21. g4 {[%clk
0:02:18.1]} 21... fxg4 {[%clk 0:02:18.4]} 22. hxg4 {[%clk 0:02:15.4]} 22... Qg6
{[%clk 0:02:18.9]} 23. Qf5 {[%clk 0:02:08.1]} 23... Rc4 {[%clk 0:02:17.1]} 24.
Re4 {[%clk 0:02:06.1]} 24... Rfc8 {[%clk 0:02:10.3]} 25. Rae1 {[%clk 0:02:02.9]}
25... Qxf5 {[%clk 0:01:49.9]} 26. gxf5 {[%clk 0:02:02.6]} 26... Kf8 {[%clk
0:01:50.6]} 27. Rxc4 {[%clk 0:01:42.4]} 27... Rxc4 {[%clk 0:01:50.3]} 28. Re4
{[%clk 0:01:44.1]} 28... Rc7 {[%clk 0:01:36.2]} 29. Kf1 {[%clk 0:01:34.4]} 29...
Bh6 {[%clk 0:01:32.3]} 30. Ke2 {[%clk 0:01:32.8]} 30... Bc1 {[%clk 0:01:31.3]}
31. Rb4 {[%clk 0:01:02.9]} 31... Bxb2 {[%clk 0:01:28.1]} 32. Ne4 {[%clk
0:00:48.6]} 32... Ba3 {[%clk 0:01:17]} 33. Rb3 {[%clk 0:00:49.4]} 33... Bc5
{[%clk 0:01:17.4]} 34. c4 {[%clk 0:00:40.5]} 34... Ke7 {[%clk 0:01:07.1]} 35.
f6+ {[%clk 0:00:37.6]} 35... Kd7 {[%clk 0:01:04.2]} 36. Rh3 {[%clk 0:00:39.1]}
36... Bd4 {[%clk 0:01:02.1]} 37. Kd3 {[%clk 0:00:34.5]} 37... Rc8 {[%clk
0:00:49.7]} 38. Rxh7 {[%clk 0:00:34.9]} 38... Rf8 {[%clk 0:00:51.2]} 39. f4
{[%clk 0:00:24.5]} 39... Ba1 {[%clk 0:00:41.8]} 40. f5 {[%clk 0:00:25.5]} 40...
Bd4 {[%clk 0:00:42.2]} 41. Rg7 {[%clk 0:00:26]} 41... a5 {[%clk 0:00:40.6]} 42.
Ng5 {[%clk 0:00:26.7]} 42... Ke8 {[%clk 0:00:41]} 43. Ke4 {[%clk 0:00:19.6]}
43... Bc5 {[%clk 0:00:39.1]} 44. Kf3 {[%clk 0:00:15.7]} 44... Bb4 {[%clk
0:00:38]} 45. Ne4 {[%clk 0:00:16.5]} 45... b6 {[%clk 0:00:37.7]} 46. Ng5 {[%clk
0:00:14.8]} 46... Ba3 {[%clk 0:00:36.5]} 47. Kg4 {[%clk 0:00:15.8]} 47... Bc5
{[%clk 0:00:34.9]} 48. Ne4 {[%clk 0:00:14.1]} 48... Bb4 {[%clk 0:00:35.4]} 49.
Kg5 {[%clk 0:00:14.8]} 49... Ba3 {[%clk 0:00:33.9]} 50. Kh6 {[%clk 0:00:15.4]}
50... Rh8+ {[%clk 0:00:32.3]} 51. Rh7 {[%clk 0:00:16.6]} 51... Rg8 {[%clk
0:00:24.1]} 52. Rg7 {[%clk 0:00:16.7]} 52... Rh8+ {[%clk 0:00:24.9]} 53. Rh7
{[%clk 0:00:17.9]} 53... Rg8 {[%clk 0:00:26]} 54. Kh5 {[%clk 0:00:11.7]} 54...
Bb4 {[%clk 0:00:21.6]} 55. Ng5 {[%clk 0:00:09.1]} 55... Rf8 {[%clk 0:00:21.1]}
56. Rg7 {[%clk 0:00:05.7]} 56... Bd2 {[%clk 0:00:19.4]} 57. Ne4 {[%clk
0:00:06.5]} 57... Bb4 {[%clk 0:00:19.1]} 58. Rh7 {[%clk 0:00:07.2]} 58... Rg8
{[%clk 0:00:19.8]} 59. Ng5 {[%clk 0:00:05.5]} 59... Rf8 {[%clk 0:00:20.8]} 60.
Ne4 {[%clk 0:00:06.9]} 60... Ba3 {[%clk 0:00:21.3]} 61. Kh6 {[%clk 0:00:07.4]}
61... Rg8 {[%clk 0:00:18.1]} 1/2-1/2

[Event "*** Titled Tuesday Blitz"]
[Site "Chess.com"]
[Date "2019.09.03"]
[Round "2"]
[White "NTBT_DHS"]
[Black "KRASAVCHIK2002"]
[Result "0-1"]
[WhiteElo "2691"]
[BlackElo "2357"]
[TimeControl "180+2"]
[EndTime "15:25:08 PDT"]
[Termination "KRASAVCHIK2002 won by resignation"]

1. d4 {[%clk 0:03:01.9]} 1... Nf6 {[%clk 0:03:00.9]} 2. Nc3 {[%clk 0:03:02.6]}
2... d5 {[%clk 0:02:49.3]} 3. Bg5 {[%clk 0:03:02.5]} 3... Bf5 {[%clk 0:02:48.3]}
4. f3 {[%clk 0:03:01.7]} 4... Bg6 {[%clk 0:02:46.2]} 5. Nh3 {[%clk 0:02:56.7]}
5... e6 {[%clk 0:02:43.6]} 6. Nf4 {[%clk 0:02:53.6]} 6... Be7 {[%clk 0:02:44.8]}
7. e3 {[%clk 0:02:49.7]} 7... c5 {[%clk 0:02:42.9]} 8. h4 {[%clk 0:02:49.1]}
8... h6 {[%clk 0:02:27.5]} 9. Nxg6 {[%clk 0:02:46.6]} 9... fxg6 {[%clk
0:02:24.6]} 10. Bxf6 {[%clk 0:02:45.9]} 10... Bxf6 {[%clk 0:02:21]} 11. g3
{[%clk 0:02:37]} 11... cxd4 {[%clk 0:02:12.8]} 12. exd4 {[%clk 0:02:36]} 12...
Nc6 {[%clk 0:02:14.7]} 13. Qd3 {[%clk 0:02:36.3]} 13... Qe7 {[%clk 0:02:03.1]}
14. Ne2 {[%clk 0:02:31.3]} 14... O-O-O {[%clk 0:01:53.8]} 15. f4 {[%clk
0:02:29.9]} 15... g5 {[%clk 0:01:49.8]} 16. O-O-O {[%clk 0:02:16.8]} 16... gxh4
{[%clk 0:01:46.6]} 17. gxh4 {[%clk 0:02:13.5]} 17... Bxh4 {[%clk 0:01:43]} 18.
Bh3 {[%clk 0:02:15]} 18... Kb8 {[%clk 0:01:30]} 19. Qg6 {[%clk 0:02:05.2]} 19...
Bf6 {[%clk 0:01:27.8]} 20. Rhe1 {[%clk 0:02:01.4]} 20... Rhe8 {[%clk 0:00:58.8]}
21. c3 {[%clk 0:02:00.6]} 21... Qc7 {[%clk 0:00:55.2]} 22. Kb1 {[%clk
0:01:58.6]} 22... Na5 {[%clk 0:00:49.9]} 23. Nc1 {[%clk 0:01:42.3]} 23... Qxf4
{[%clk 0:00:45.7]} 24. Bxe6 {[%clk 0:01:43.1]} 24... Qd6 {[%clk 0:00:28.3]} 25.
Qf5 {[%clk 0:01:41.2]} 25... Nc4 {[%clk 0:00:22.1]} 26. Nd3 {[%clk 0:01:39.3]}
26... Qb6 {[%clk 0:00:19.5]} 27. Bxd5 {[%clk 0:01:36.8]} 27... Na3+ {[%clk
0:00:17.9]} 28. Kc1 {[%clk 0:01:36.1]} 28... Bg5+ {[%clk 0:00:18.9]} 29. Nf4
{[%clk 0:01:37.5]} 29... Rf8 {[%clk 0:00:12.5]} 30. Qe5+ {[%clk 0:01:33.5]}
30... Ka8 {[%clk 0:00:13.9]} 31. Re4 {[%clk 0:01:28.1]} 31... Rxf4 {[%clk
0:00:10.3]} 32. Rxf4 {[%clk 0:01:27.7]} 32... Rxd5 {[%clk 0:00:08.2]} 33. Rd2
{[%clk 0:00:40]} 33... Rxe5 {[%clk 0:00:06.2]} 34. Rf8+ {[%clk 0:00:41]} 34...
Bd8 {[%clk 0:00:04.5]} 35. dxe5 {[%clk 0:00:38.7]} 35... Qg1+ {[%clk 0:00:04.4]}
36. Rd1 {[%clk 0:00:40]} 36... Qe3+ {[%clk 0:00:04.7]} 37. Rd2 {[%clk
0:00:40.5]} 37... a6 {[%clk 0:00:05.9]} 38. Rxd8+ {[%clk 0:00:39.7]} 38... Ka7
{[%clk 0:00:06.8]} 39. bxa3 {[%clk 0:00:41]} 39... Qxc3+ {[%clk 0:00:07.9]} 40.
Kd1 {[%clk 0:00:41]} 40... Qxe5 {[%clk 0:00:09.8]} 41. R8d3 {[%clk 0:00:38.7]}
41... g5 {[%clk 0:00:09.9]} 42. Rb3 {[%clk 0:00:35.9]} 42... Qe4 {[%clk
0:00:09.5]} 43. Re2 {[%clk 0:00:33.9]} 43... Qh1+ {[%clk 0:00:09.7]} 44. Re1
{[%clk 0:00:35.2]} 44... Qd5+ {[%clk 0:00:09.8]} 45. Ke2 {[%clk 0:00:33.9]}
45... g4 {[%clk 0:00:10.7]} 46. Kf2 {[%clk 0:00:34.4]} 46... h5 {[%clk
0:00:10.7]} 47. Kg3 {[%clk 0:00:35.1]} 47... Qd6+ {[%clk 0:00:11.4]} 48. Kh4
{[%clk 0:00:28.6]} 48... Qh2+ {[%clk 0:00:12.4]} 49. Kg5 {[%clk 0:00:30]} 49...
g3 {[%clk 0:00:06]} 50. Reb1 {[%clk 0:00:08.7]} 50... b5 {[%clk 0:00:07.1]} 51.
Re1 {[%clk 0:00:07.2]} 51... g2 {[%clk 0:00:07.7]} 52. Rbb1 {[%clk 0:00:09.1]}
52... h4 {[%clk 0:00:06.4]} 53. a4 {[%clk 0:00:10.5]} 53... h3 {[%clk
0:00:06.9]} 54. axb5 {[%clk 0:00:11.9]} 54... Qg3+ {[%clk 0:00:07.8]} 55. Kf5
{[%clk 0:00:12.3]} 55... axb5 {[%clk 0:00:09.1]} 56. Re7+ {[%clk 0:00:10.8]}
56... Kb6 {[%clk 0:00:10.1]} 57. Re6+ {[%clk 0:00:11.6]} 57... Ka5 {[%clk
0:00:11.4]} 58. Rbe1 {[%clk 0:00:09.3]} 58... g1=Q {[%clk 0:00:11]} 59. Rxg1
{[%clk 0:00:10.4]} 59... Qxg1 {[%clk 0:00:12.2]} 60. Re8 {[%clk 0:00:12.2]}
60... h2 {[%clk 0:00:13.1]} 61. Ra8+ {[%clk 0:00:13.2]} 61... Kb6 {[%clk
0:00:14.5]} 62. a3 {[%clk 0:00:15.1]} 62... h1=Q {[%clk 0:00:14.2]} 63. Ke6
{[%clk 0:00:17]} 63... Qe4+ {[%clk 0:00:14.9]} 0-1

[Event "*** Titled Tuesday Blitz"]
[Site "Chess.com"]
[Date "2019.09.03"]
[Round "2"]
[White "FontVella8"]
[Black "Caisachess"]
[Result "1-0"]
[WhiteElo "2499"]
[BlackElo "2267"]
[TimeControl "180+2"]
[EndTime "15:25:17 PDT"]
[Termination "FontVella8 won by resignation"]

1. d4 {[%clk 0:03:01.9]} 1... Nf6 {[%clk 0:03:00.4]} 2. c4 {[%clk 0:03:03.3]}
2... e6 {[%clk 0:03:01.5]} 3. Nc3 {[%clk 0:03:04.3]} 3... d5 {[%clk 0:03:03]} 4.
cxd5 {[%clk 0:03:04.6]} 4... exd5 {[%clk 0:03:03.9]} 5. Bg5 {[%clk 0:03:06]}
5... Be7 {[%clk 0:03:04.4]} 6. e3 {[%clk 0:03:07.4]} 6... O-O {[%clk 0:03:05.8]}
7. Bd3 {[%clk 0:03:08.4]} 7... c6 {[%clk 0:03:05.8]} 8. Nge2 {[%clk 0:03:09.5]}
8... Ne4 {[%clk 0:03:02]} 9. Bxe7 {[%clk 0:03:09.1]} 9... Qxe7 {[%clk
0:03:02.8]} 10. O-O {[%clk 0:03:10.8]} 10... Bf5 {[%clk 0:02:54]} 11. Qc2 {[%clk
0:03:11]} 11... Bg6 {[%clk 0:02:53.2]} 12. Rae1 {[%clk 0:03:11.6]} 12... f5
{[%clk 0:02:49.2]} 13. f3 {[%clk 0:03:12.4]} 13... Nd6 {[%clk 0:02:40.2]} 14.
Nf4 {[%clk 0:03:11.5]} 14... Nd7 {[%clk 0:02:23.1]} 15. Kh1 {[%clk 0:02:51]}
15... Qf6 {[%clk 0:02:12]} 16. Nce2 {[%clk 0:02:39.3]} 16... Rae8 {[%clk
0:02:09]} 17. Nc1 {[%clk 0:02:28.8]} 17... Re7 {[%clk 0:01:56.4]} 18. b4 {[%clk
0:02:16]} 18... Rfe8 {[%clk 0:01:56.9]} 19. Qd2 {[%clk 0:02:17.6]} 19... Nb6
{[%clk 0:01:51]} 20. Qf2 {[%clk 0:01:55.9]} 20... Nbc4 {[%clk 0:01:49.3]} 21.
Bxc4 {[%clk 0:01:48.4]} 21... Nxc4 {[%clk 0:01:46.7]} 22. Ncd3 {[%clk
0:01:44.4]} 22... Nxe3 {[%clk 0:01:34.1]} 23. Rg1 {[%clk 0:01:43.9]} 23... Qxd4
{[%clk 0:01:29.6]} 24. Qg3 {[%clk 0:01:38.1]} 24... Qf6 {[%clk 0:01:25.5]} 25.
Rb1 {[%clk 0:01:31.2]} 25... Bf7 {[%clk 0:01:05.2]} 26. a4 {[%clk 0:01:31.6]}
26... d4 {[%clk 0:01:01.4]} 27. b5 {[%clk 0:01:31]} 27... Bc4 {[%clk 0:00:57]}
28. Nc5 {[%clk 0:01:31.7]} 28... Nd5 {[%clk 0:00:45.7]} 29. Nh3 {[%clk
0:01:28.5]} 29... f4 {[%clk 0:00:44.1]} 30. Qg4 {[%clk 0:01:24.4]} 30... Ne3
{[%clk 0:00:43.7]} 31. Qxf4 {[%clk 0:01:25.7]} 31... Qxf4 {[%clk 0:00:35.3]} 32.
Nxf4 {[%clk 0:01:27.6]} 32... cxb5 {[%clk 0:00:36.7]} 33. axb5 {[%clk
0:01:28.5]} 33... b6 {[%clk 0:00:38.1]} 34. Ne4 {[%clk 0:01:29.6]} 34... Rf8
{[%clk 0:00:28.2]} 35. Nh5 {[%clk 0:01:22.6]} 35... Rxe4 {[%clk 0:00:25]} 36.
fxe4 {[%clk 0:01:23.3]} 36... Bd3 {[%clk 0:00:26.4]} 37. Rb2 {[%clk 0:01:14]}
37... Bxe4 {[%clk 0:00:27.8]} 38. Ng3 {[%clk 0:01:13]} 38... Bb7 {[%clk
0:00:24.2]} 39. Re1 {[%clk 0:01:13.1]} 39... Nxg2 {[%clk 0:00:18.5]} 40. Re7
{[%clk 0:00:56.3]} 40... Bd5 {[%clk 0:00:16.5]} 41. Kg1 {[%clk 0:00:50.2]} 41...
Ne3 {[%clk 0:00:16.3]} 42. Rd2 {[%clk 0:00:48.3]} 42... Rf4 {[%clk 0:00:16.3]}
43. Re8+ {[%clk 0:00:41.5]} 43... Kf7 {[%clk 0:00:16.9]} 44. Rxe3 {[%clk
0:00:43.1]} 44... dxe3 {[%clk 0:00:15.9]} 45. Rxd5 {[%clk 0:00:44.7]} 45... Rb4
{[%clk 0:00:14.8]} 46. Re5 {[%clk 0:00:44.5]} 46... Rb3 {[%clk 0:00:14.4]} 47.
Kf1 {[%clk 0:00:41.1]} 47... Kf6 {[%clk 0:00:15.8]} 48. Rh5 {[%clk 0:00:35.5]}
48... h6 {[%clk 0:00:15.6]} 49. Ke2 {[%clk 0:00:35.3]} 49... Kg6 {[%clk
0:00:14]} 50. Rd5 {[%clk 0:00:35.8]} 50... Rb2+ {[%clk 0:00:13.1]} 51. Kxe3
{[%clk 0:00:37.3]} 51... Rxh2 {[%clk 0:00:14.6]} 52. Rd6+ {[%clk 0:00:38.8]}
52... Kg5 {[%clk 0:00:14.5]} 53. Rd7 {[%clk 0:00:39.3]} 53... g6 {[%clk
0:00:14.4]} 54. Rxa7 {[%clk 0:00:36.4]} 54... h5 {[%clk 0:00:15.6]} 55. Rb7
{[%clk 0:00:34.3]} 55... h4 {[%clk 0:00:16.3]} 56. Ne4+ {[%clk 0:00:35.9]} 56...
Kg4 {[%clk 0:00:16.4]} 57. Rxb6 {[%clk 0:00:37.3]} 57... g5 {[%clk 0:00:17.9]}
58. Rg6 {[%clk 0:00:38.7]} 58... Kf5 {[%clk 0:00:17.6]} 59. Rxg5+ {[%clk
0:00:38.9]} 59... Ke6 {[%clk 0:00:19.5]} 60. b6 {[%clk 0:00:36.5]} 60... Rb2
{[%clk 0:00:19.4]} 61. b7 {[%clk 0:00:37.8]} 61... h3 {[%clk 0:00:18.6]} 62. Rh5
{[%clk 0:00:33]} 62... Kf7 {[%clk 0:00:16.6]} 63. Rxh3 {[%clk 0:00:21.2]} 63...
Kg6 {[%clk 0:00:17.3]} 64. Nc5 {[%clk 0:00:19.3]} 64... Rb5 {[%clk 0:00:18.3]}
65. Kd4 {[%clk 0:00:18.2]} 65... Kf6 {[%clk 0:00:19.6]} 66. Rb3 {[%clk 0:00:18]}
1-0